[Event "*** Titled Tuesday Blitz"]
[Site "Chess.com"]
[Date "2020.04.28"]
[Round "2"]
[White "ElHelvetico"]
[Black "stasiek18"]
[Result "1-0"]
[WhiteElo "2650"]
[BlackElo "2348"]
[TimeControl "180+1"]
[EndTime "10:17:06 PDT"]
[Termination "ElHelvetico won by resignation"]

1. e4 {[%clk 0:02:58.4]} 1... c6 {[%clk 0:02:58.9]} 2. Nc3 {[%clk 0:02:57.8]}
2... d5 {[%clk 0:02:59.8]} 3. Nf3 {[%clk 0:02:57.6]} 3... Bg4 {[%clk 0:02:59]}
4. h3 {[%clk 0:02:57.3]} 4... Bxf3 {[%clk 0:02:58.7]} 5. Qxf3 {[%clk 0:02:58.2]}
5... Nf6 {[%clk 0:02:58.6]} 6. g3 {[%clk 0:02:52.2]} 6... e6 {[%clk 0:02:56.6]}
7. Bg2 {[%clk 0:02:52]} 7... Nbd7 {[%clk 0:02:56.9]} 8. O-O {[%clk 0:02:51.6]}
8... Bc5 {[%clk 0:02:56.5]} 9. d3 {[%clk 0:02:51.1]} 9... O-O {[%clk 0:02:55.3]}
10. Qe2 {[%clk 0:02:48.5]} 10... Re8 {[%clk 0:02:52.7]} 11. e5 {[%clk
0:02:39.6]} 11... d4 {[%clk 0:02:52.7]} 12. exf6 {[%clk 0:02:30.1]} 12... dxc3
{[%clk 0:02:52.6]} 13. fxg7 {[%clk 0:02:30.3]} 13... Bd4 {[%clk 0:02:48.4]} 14.
bxc3 {[%clk 0:02:28.6]} 14... Bxc3 {[%clk 0:02:47.7]} 15. Rb1 {[%clk 0:02:29.1]}
15... Nb6 {[%clk 0:02:15.8]} 16. Qh5 {[%clk 0:02:12.9]} 16... Qf6 {[%clk
0:02:09.8]} 17. Be4 {[%clk 0:02:11.3]} 17... Qxg7 {[%clk 0:02:06.1]} 18. Bh6
{[%clk 0:02:10.9]} 18... Qe5 {[%clk 0:01:59.8]} 19. Qg4+ {[%clk 0:01:35.4]}
19... Kh8 {[%clk 0:01:58.3]} 20. Qh4 {[%clk 0:01:31.2]} 20... f5 {[%clk
0:01:55.4]} 21. Bg2 {[%clk 0:01:27.2]} 21... Rg8 {[%clk 0:01:49.3]} 22. a4
{[%clk 0:01:21.3]} 22... Rg6 {[%clk 0:01:28.5]} 23. Bf4 {[%clk 0:01:18.7]} 23...
Qd4 {[%clk 0:00:57.5]} 24. a5 {[%clk 0:01:13.6]} 24... Bxa5 {[%clk 0:00:53.8]}
25. Rb3 {[%clk 0:00:49.3]} 25... e5 {[%clk 0:00:38.8]} 26. Bg5 {[%clk
0:00:46.1]} 26... Qxh4 {[%clk 0:00:38.1]} 27. Bxh4 {[%clk 0:00:47]} 27... Kg8
{[%clk 0:00:19.5]} 28. Ra1 {[%clk 0:00:46.1]} 28... Bd2 {[%clk 0:00:18.2]} 29.
Rxb6 {[%clk 0:00:45.8]} 29... f4 {[%clk 0:00:11.4]} 30. Rxb7 {[%clk 0:00:44]}
1-0

[Event "*** Titled Tuesday Blitz"]
[Site "Chess.com"]
[Date "2020.04.28"]
[Round "2"]
[White "damayito"]
[Black "AnonymusDonkey"]
[Result "0-1"]
[WhiteElo "1644"]
[BlackElo "2349"]
[TimeControl "180+1"]
[EndTime "10:17:06 PDT"]
[Termination "AnonymusDonkey won by resignation"]

1. e4 {[%clk 0:03:00.9]} 1... c5 {[%clk 0:02:58.7]} 2. Nc3 {[%clk 0:02:59.2]}
2... a6 {[%clk 0:02:57.7]} 3. g3 {[%clk 0:02:57.8]} 3... b5 {[%clk 0:02:58]} 4.
Bg2 {[%clk 0:02:54.4]} 4... Bb7 {[%clk 0:02:57.9]} 5. d3 {[%clk 0:02:52]} 5...
e6 {[%clk 0:02:53.7]} 6. Nge2 {[%clk 0:02:51.8]} 6... d5 {[%clk 0:02:51.7]} 7.
O-O {[%clk 0:02:49.2]} 7... Be7 {[%clk 0:02:40.6]} 8. exd5 {[%clk 0:02:43.7]}
8... exd5 {[%clk 0:02:40.7]} 9. d4 {[%clk 0:02:44.3]} 9... c4 {[%clk 0:02:40.6]}
10. Nf4 {[%clk 0:02:35.6]} 10... Nf6 {[%clk 0:02:40.2]} 11. Nce2 {[%clk
0:02:34.8]} 11... O-O {[%clk 0:02:35.8]} 12. c3 {[%clk 0:02:33.9]} 12... Nbd7
{[%clk 0:02:30.1]} 13. a3 {[%clk 0:02:33.1]} 13... Ne4 {[%clk 0:02:22.5]} 14. f3
{[%clk 0:02:27.6]} 14... Nef6 {[%clk 0:02:09]} 15. Qc2 {[%clk 0:02:19.3]} 15...
a5 {[%clk 0:02:05.1]} 16. Bd2 {[%clk 0:02:17.9]} 16... Qb6 {[%clk 0:02:02.1]}
17. Nh3 {[%clk 0:02:12.8]} 17... b4 {[%clk 0:02:00.2]} 18. axb4 {[%clk
0:02:11.6]} 18... axb4 {[%clk 0:01:59.7]} 19. Nef4 {[%clk 0:02:03.2]} 19... b3
{[%clk 0:01:49.5]} 20. Qf5 {[%clk 0:01:58.7]} 20... g6 {[%clk 0:01:48.7]} 21.
Qb1 {[%clk 0:01:52]} 21... Rxa1 {[%clk 0:01:29.2]} 22. Qxa1 {[%clk 0:01:51.1]}
22... Ra8 {[%clk 0:01:29]} 23. Qe1 {[%clk 0:01:41.3]} 23... Bf8 {[%clk
0:01:27.2]} 24. Qe3 {[%clk 0:01:35.5]} 24... Re8 {[%clk 0:01:13.3]} 25. Qf2
{[%clk 0:01:33.3]} 25... Qa7 {[%clk 0:01:13.2]} 26. Re1 {[%clk 0:01:30.2]} 26...
Rxe1+ {[%clk 0:01:08.8]} 27. Qxe1 {[%clk 0:01:30.2]} 27... Qa2 {[%clk 0:01:09]}
28. Qc1 {[%clk 0:01:26.9]} 28... Ba3 {[%clk 0:01:04.4]} 29. Ne2 {[%clk
0:00:30.7]} 29... Qxb2 {[%clk 0:00:51]} 30. Qxb2 {[%clk 0:00:20.1]} 30... Bxb2
{[%clk 0:00:51.9]} 31. Bc1 {[%clk 0:00:20.2]} 31... Bxc1 {[%clk 0:00:51.2]} 32.
Nxc1 {[%clk 0:00:19.1]} 32... b2 {[%clk 0:00:52.1]} 0-1

[Event "*** Titled Tuesday Blitz"]
[Site "Chess.com"]
[Date "2020.04.28"]
[Round "2"]
[White "LucaBrasi1968"]
[Black "francyIM"]
[Result "0-1"]
[WhiteElo "2477"]
[BlackElo "2708"]
[TimeControl "180+1"]
[EndTime "10:17:07 PDT"]
[Termination "francyIM won by resignation"]

1. d4 {[%clk 0:03:00.9]} 1... Nf6 {[%clk 0:02:59.3]} 2. Nf3 {[%clk 0:03:00.3]}
2... g6 {[%clk 0:02:58]} 3. Bg5 {[%clk 0:03:00.2]} 3... Bg7 {[%clk 0:02:57]} 4.
e3 {[%clk 0:02:59.4]} 4... O-O {[%clk 0:02:54.1]} 5. Bd3 {[%clk 0:02:58.1]} 5...
d5 {[%clk 0:02:54]} 6. O-O {[%clk 0:02:57.2]} 6... Bg4 {[%clk 0:02:53.2]} 7.
Nbd2 {[%clk 0:02:54.2]} 7... Nbd7 {[%clk 0:02:51.1]} 8. h3 {[%clk 0:02:53.9]}
8... Bxf3 {[%clk 0:02:48.8]} 9. Nxf3 {[%clk 0:02:53.5]} 9... c6 {[%clk
0:02:49.3]} 10. Bf4 {[%clk 0:02:52.7]} 10... Re8 {[%clk 0:02:44.5]} 11. c4
{[%clk 0:02:50.8]} 11... dxc4 {[%clk 0:02:37.6]} 12. Bxc4 {[%clk 0:02:50.3]}
12... Nd5 {[%clk 0:02:37.8]} 13. Bg3 {[%clk 0:02:48.3]} 13... N5b6 {[%clk
0:02:37.2]} 14. Bb3 {[%clk 0:02:47.5]} 14... e5 {[%clk 0:02:35.5]} 15. dxe5
{[%clk 0:02:37.4]} 15... Nxe5 {[%clk 0:02:32.2]} 16. Nxe5 {[%clk 0:02:36.4]}
16... Bxe5 {[%clk 0:02:31.8]} 17. Bxe5 {[%clk 0:02:33.2]} 17... Rxe5 {[%clk
0:02:31.1]} 18. Qxd8+ {[%clk 0:02:32.9]} 18... Rxd8 {[%clk 0:02:31]} 19. Rfd1
{[%clk 0:02:33.4]} 19... Ree8 {[%clk 0:02:31.6]} 20. Kf1 {[%clk 0:02:32]} 20...
Kf8 {[%clk 0:02:31.4]} 21. Ke2 {[%clk 0:02:30.1]} 21... Ke7 {[%clk 0:02:31.4]}
22. Rxd8 {[%clk 0:02:28.9]} 22... Rxd8 {[%clk 0:02:32.3]} 23. Rd1 {[%clk
0:02:28.8]} 23... Rc8 {[%clk 0:02:32.1]} 24. f4 {[%clk 0:02:22.9]} 24... c5
{[%clk 0:02:31]} 25. Bd5 {[%clk 0:02:20.5]} 25... Rc7 {[%clk 0:02:30.9]} 26. e4
{[%clk 0:02:18.6]} 26... Rd7 {[%clk 0:02:28.2]} 27. Bb3 {[%clk 0:02:11.8]} 27...
c4 {[%clk 0:02:27.8]} 28. Rxd7+ {[%clk 0:02:07.5]} 28... Kxd7 {[%clk 0:02:28.7]}
29. Bc2 {[%clk 0:02:07.1]} 29... Kd6 {[%clk 0:02:28.8]} 30. Ke3 {[%clk
0:02:07.5]} 30... Kc5 {[%clk 0:02:29.1]} 31. e5 {[%clk 0:02:06.8]} 31... Nd5+
{[%clk 0:02:28.9]} 32. Kf3 {[%clk 0:02:06.7]} 32... Kd4 {[%clk 0:02:27.7]} 33.
Be4 {[%clk 0:01:59.7]} 33... Nb4 {[%clk 0:02:27.1]} 34. a3 {[%clk 0:01:58]}
34... Nd3 {[%clk 0:01:49]} 35. Bxb7 {[%clk 0:01:19.4]} 35... Nxb2 {[%clk
0:01:47.6]} 36. Ke2 {[%clk 0:01:12.4]} 36... c3 {[%clk 0:01:39.9]} 37. Ba6
{[%clk 0:00:58.2]} 37... Na4 {[%clk 0:01:39.6]} 38. Bb5 {[%clk 0:00:40.4]} 38...
Nc5 {[%clk 0:01:38.3]} 39. Be8 {[%clk 0:00:28.1]} 39... Nd3 {[%clk 0:01:27.8]}
40. Kd1 {[%clk 0:00:24.4]} 40... Nxf4 {[%clk 0:01:26.4]} 41. Bxf7 {[%clk
0:00:23.8]} 41... Kxe5 {[%clk 0:01:26.4]} 42. Kc2 {[%clk 0:00:22.2]} 42... Kd4
{[%clk 0:01:26.1]} 43. Bg8 {[%clk 0:00:20]} 43... h6 {[%clk 0:01:26]} 44. Bh7
{[%clk 0:00:17.9]} 44... g5 {[%clk 0:01:26.2]} 45. g4 {[%clk 0:00:17.4]} 45...
Nxh3 {[%clk 0:01:25.5]} 46. Bf5 {[%clk 0:00:17.7]} 46... Nf4 {[%clk 0:01:24.5]}
47. Bh7 {[%clk 0:00:16.9]} 47... Ng2 {[%clk 0:01:24.5]} 48. Bg8 {[%clk
0:00:14.8]} 48... Ne3+ {[%clk 0:01:24.4]} 49. Kc1 {[%clk 0:00:15.4]} 49... Nxg4
{[%clk 0:01:24.5]} 0-1

[Event "*** Titled Tuesday Blitz"]
[Site "Chess.com"]
[Date "2020.04.28"]
[Round "2"]
[White "Guachiney"]
[Black "lupta_robin"]
[Result "1-0"]
[WhiteElo "2843"]
[BlackElo "2541"]
[TimeControl "180+1"]
[EndTime "10:17:08 PDT"]
[Termination "Guachiney won on time"]

1. e4 {[%clk 0:03:00.9]} 1... g6 {[%clk 0:02:59.7]} 2. d4 {[%clk 0:03:00.5]}
2... Nf6 {[%clk 0:02:59.7]} 3. e5 {[%clk 0:02:59.9]} 3... Nh5 {[%clk 0:02:59.7]}
4. Nc3 {[%clk 0:02:58.7]} 4... d6 {[%clk 0:02:59.1]} 5. f4 {[%clk 0:02:58.4]}
5... dxe5 {[%clk 0:02:42]} 6. fxe5 {[%clk 0:02:55.2]} 6... Nc6 {[%clk
0:02:15.7]} 7. Nf3 {[%clk 0:02:44.9]} 7... Bg4 {[%clk 0:02:13.2]} 8. Bb5 {[%clk
0:02:44]} 8... e6 {[%clk 0:01:55.6]} 9. O-O {[%clk 0:02:35.3]} 9... Qd7 {[%clk
0:01:25.9]} 10. h3 {[%clk 0:02:29.2]} 10... Bxf3 {[%clk 0:01:23.3]} 11. Qxf3
{[%clk 0:02:30.1]} 11... O-O-O {[%clk 0:01:13]} 12. Be3 {[%clk 0:02:29.5]} 12...
Ng7 {[%clk 0:01:05.8]} 13. g4 {[%clk 0:02:17.3]} 13... h5 {[%clk 0:01:03.8]} 14.
Kg2 {[%clk 0:02:15.8]} 14... hxg4 {[%clk 0:01:03.2]} 15. hxg4 {[%clk 0:02:16.7]}
15... Be7 {[%clk 0:00:44.3]} 16. Rh1 {[%clk 0:02:12.7]} 16... Rxh1 {[%clk
0:00:22.6]} 17. Rxh1 {[%clk 0:02:11.2]} 17... Qe8 {[%clk 0:00:14.7]} 18. Bxc6
{[%clk 0:02:01.6]} 18... bxc6 {[%clk 0:00:12.4]} 19. Ne4 {[%clk 0:02:01.4]}
19... Qg8 {[%clk 0:00:09.2]} 20. c3 {[%clk 0:01:56.7]} 20... Ne8 {[%clk
0:00:07.7]} 21. b4 {[%clk 0:01:56.3]} 21... Kd7 {[%clk 0:00:08]} 22. Bg5 {[%clk
0:01:51.9]} 22... Rb8 {[%clk 0:00:07.2]} 23. Qf4 {[%clk 0:01:44.7]} 23... Qg7
{[%clk 0:00:06.4]} 24. Bf6 {[%clk 0:01:33.2]} 24... Bxf6 {[%clk 0:00:06]} 25.
exf6 {[%clk 0:01:32.9]} 25... Qf8 {[%clk 0:00:06.3]} 26. Rh7 {[%clk 0:01:31.9]}
26... Nd6 {[%clk 0:00:06]} 27. Nc5+ {[%clk 0:01:30.1]} 27... Kc8 {[%clk
0:00:06.3]} 28. Qh2 {[%clk 0:01:25.1]} 28... Qd8 {[%clk 0:00:06.3]} 29. Rh8
{[%clk 0:01:21.7]} 29... Ne8 {[%clk 0:00:06.7]} 30. Qh7 {[%clk 0:00:57.7]} 30...
Qd5+ {[%clk 0:00:03.7]} 31. Kg1 {[%clk 0:00:56.5]} 1-0

[Event "*** Titled Tuesday Blitz"]
[Site "Chess.com"]
[Date "2020.04.28"]
[Round "2"]
[White "Fh2411"]
[Black "Zurability"]
[Result "0-1"]
[WhiteElo "2474"]
[BlackElo "2710"]
[TimeControl "180+1"]
[EndTime "10:17:08 PDT"]
[Termination "Zurability won by resignation"]

1. Nf3 {[%clk 0:03:00.2]} 1... d5 {[%clk 0:02:59.1]} 2. c4 {[%clk 0:02:58.9]}
2... d4 {[%clk 0:02:59.4]} 3. d3 {[%clk 0:02:58.5]} 3... Nc6 {[%clk 0:02:59]} 4.
g3 {[%clk 0:02:58.6]} 4... e5 {[%clk 0:02:58.8]} 5. Bg2 {[%clk 0:02:59.2]} 5...
Nf6 {[%clk 0:02:57.7]} 6. O-O {[%clk 0:02:58.2]} 6... a5 {[%clk 0:02:56.7]} 7.
e3 {[%clk 0:02:57.3]} 7... Be7 {[%clk 0:02:56.6]} 8. exd4 {[%clk 0:02:56.4]}
8... exd4 {[%clk 0:02:57.5]} 9. Nbd2 {[%clk 0:02:17.6]} 9... O-O {[%clk
0:02:57.1]} 10. Re1 {[%clk 0:02:05.8]} 10... Bf5 {[%clk 0:02:52.1]} 11. Bf1
{[%clk 0:01:53.9]} 11... h6 {[%clk 0:02:48.8]} 12. a3 {[%clk 0:01:53.4]} 12...
Qd7 {[%clk 0:02:40.4]} 13. Ne5 {[%clk 0:01:34.9]} 13... Nxe5 {[%clk 0:02:36.3]}
14. Rxe5 {[%clk 0:01:35.8]} 14... Bd6 {[%clk 0:02:21.7]} 15. Re1 {[%clk
0:01:34.2]} 15... Rfe8 {[%clk 0:02:20]} 16. Nf3 {[%clk 0:01:34.3]} 16... Bc5
{[%clk 0:02:11.2]} 17. Bf4 {[%clk 0:01:29.1]} 17... Bg4 {[%clk 0:02:02.7]} 18.
Bg2 {[%clk 0:01:19.6]} 18... g5 {[%clk 0:02:02.5]} 19. Bd2 {[%clk 0:01:08.9]}
19... Qf5 {[%clk 0:02:02.3]} 20. Rxe8+ {[%clk 0:01:02.8]} 20... Rxe8 {[%clk
0:01:56.2]} 21. b4 {[%clk 0:01:03]} 21... Ba7 {[%clk 0:01:51.6]} 22. Rb1 {[%clk
0:00:45.4]} 22... Qxd3 {[%clk 0:01:47.9]} 23. Rb3 {[%clk 0:00:44.7]} 23... Qxc4
{[%clk 0:01:44.9]} 24. bxa5 {[%clk 0:00:44.1]} 24... d3 {[%clk 0:01:14.2]} 25.
Rxb7 {[%clk 0:00:41.3]} 25... Bxf2+ {[%clk 0:00:58.8]} 26. Kxf2 {[%clk
0:00:28.3]} 26... Qc5+ {[%clk 0:00:58.3]} 27. Kf1 {[%clk 0:00:26]} 27... Re2
{[%clk 0:00:58]} 28. Be1 {[%clk 0:00:24.8]} 28... Qe3 {[%clk 0:00:50.1]} 29. Ng1
{[%clk 0:00:20.1]} 29... Rxg2 {[%clk 0:00:41.2]} 0-1

[Event "*** Titled Tuesday Blitz"]
[Site "Chess.com"]
[Date "2020.04.28"]
[Round "2"]
[White "AlanZhang"]
[Black "Soltan49"]
[Result "0-1"]
[WhiteElo "2160"]
[BlackElo "2420"]
[TimeControl "180+1"]
[EndTime "10:17:08 PDT"]
[Termination "Soltan49 won on time"]

1. e4 {[%clk 0:02:59.5]} 1... c6 {[%clk 0:02:58.9]} 2. d4 {[%clk 0:02:59.2]}
2... d5 {[%clk 0:02:59.2]} 3. Nc3 {[%clk 0:02:59.7]} 3... dxe4 {[%clk 0:02:57]}
4. Nxe4 {[%clk 0:03:00.6]} 4... Nf6 {[%clk 0:02:57.5]} 5. Nxf6+ {[%clk
0:03:00.2]} 5... gxf6 {[%clk 0:02:58.4]} 6. g3 {[%clk 0:03:00.7]} 6... h5 {[%clk
0:02:57.6]} 7. Nf3 {[%clk 0:03:00.2]} 7... Bg4 {[%clk 0:02:57.6]} 8. Bg2 {[%clk
0:02:33.9]} 8... h4 {[%clk 0:02:57.1]} 9. h3 {[%clk 0:02:33.3]} 9... Bxf3 {[%clk
0:02:54.8]} 10. Bxf3 {[%clk 0:02:34.2]} 10... hxg3 {[%clk 0:02:55.6]} 11. fxg3
{[%clk 0:02:33.1]} 11... e6 {[%clk 0:02:55.7]} 12. Qd3 {[%clk 0:02:24.7]} 12...
Bd6 {[%clk 0:02:54.8]} 13. Bf4 {[%clk 0:02:06]} 13... Bxf4 {[%clk 0:02:47.9]}
14. gxf4 {[%clk 0:02:06.9]} 14... f5 {[%clk 0:02:48.2]} 15. O-O-O {[%clk
0:01:39.1]} 15... Nd7 {[%clk 0:02:43.7]} 16. c4 {[%clk 0:01:29.9]} 16... Qc7
{[%clk 0:02:36.5]} 17. Qe3 {[%clk 0:01:21]} 17... O-O-O {[%clk 0:02:35.1]} 18.
Be2 {[%clk 0:00:59.1]} 18... Kb8 {[%clk 0:02:23.8]} 19. Kb1 {[%clk 0:00:58.7]}
19... Nf6 {[%clk 0:02:22.7]} 20. Rhg1 {[%clk 0:00:53.1]} 20... Rh4 {[%clk
0:02:18.9]} 21. Rdf1 {[%clk 0:00:36.9]} 21... Rdh8 {[%clk 0:02:15.4]} 22. Rf3
{[%clk 0:00:27.8]} 22... Rg8 {[%clk 0:01:49.7]} 23. Rxg8+ {[%clk 0:00:24.6]}
23... Nxg8 {[%clk 0:01:50.6]} 24. Qg1 {[%clk 0:00:24.3]} 24... Qd8 {[%clk
0:01:41.4]} 25. Rg3 {[%clk 0:00:17.3]} 25... Ne7 {[%clk 0:01:41.1]} 26. Rg7
{[%clk 0:00:17.1]} 26... Rxf4 {[%clk 0:01:36]} 27. Rxf7 {[%clk 0:00:16.6]} 27...
Nc8 {[%clk 0:01:34.9]} 28. d5 {[%clk 0:00:03.7]} 28... exd5 {[%clk 0:01:27.1]}
29. Qg2 {[%clk 0:00:01.1]} 29... Re4 {[%clk 0:01:19.8]} 30. Qg3+ {[%clk
0:00:01.7]} 30... f4 {[%clk 0:01:17.1]} 31. Rxf4 {[%clk 0:00:01.2]} 31... Qc7
{[%clk 0:01:14.1]} 32. Rf3 {[%clk 0:00:01.2]} 32... Rxe2 {[%clk 0:01:12.4]} 0-1

[Event "*** Titled Tuesday Blitz"]
[Site "Chess.com"]
[Date "2020.04.28"]
[Round "2"]
[White "Ave_Mariia"]
[Black "INLOVEWITHF"]
[Result "0-1"]
[WhiteElo "2285"]
[BlackElo "2529"]
[TimeControl "180+1"]
[EndTime "10:17:09 PDT"]
[Termination "INLOVEWITHF won by resignation"]

1. d4 {[%clk 0:03:00.9]} 1... Nf6 {[%clk 0:02:58.7]} 2. c4 {[%clk 0:03:00.8]}
2... g6 {[%clk 0:02:58.3]} 3. Nc3 {[%clk 0:03:00.4]} 3... Bg7 {[%clk 0:02:57.8]}
4. e4 {[%clk 0:03:00.2]} 4... d6 {[%clk 0:02:58.4]} 5. Be2 {[%clk 0:03:00.4]}
5... O-O {[%clk 0:02:59]} 6. Be3 {[%clk 0:03:00.7]} 6... Nc6 {[%clk 0:02:57.2]}
7. g4 {[%clk 0:02:56.8]} 7... e5 {[%clk 0:02:53.7]} 8. d5 {[%clk 0:02:15.3]}
8... Nd4 {[%clk 0:02:53.2]} 9. g5 {[%clk 0:02:10.9]} 9... Nd7 {[%clk 0:02:52.9]}
10. Nf3 {[%clk 0:02:03.6]} 10... f5 {[%clk 0:02:43.6]} 11. Nxd4 {[%clk
0:01:56.4]} 11... exd4 {[%clk 0:02:42.8]} 12. Bxd4 {[%clk 0:01:55.6]} 12... Qxg5
{[%clk 0:02:40.4]} 13. Bxg7 {[%clk 0:01:53.5]} 13... Kxg7 {[%clk 0:02:41.3]} 14.
exf5 {[%clk 0:01:19.7]} 14... Ne5 {[%clk 0:02:35.4]} 15. Ne4 {[%clk 0:01:04.8]}
15... Qxf5 {[%clk 0:02:34]} 16. Qd4 {[%clk 0:01:01.2]} 16... Qf4 {[%clk
0:02:28.7]} 17. Qe3 {[%clk 0:00:54.1]} 17... Bg4 {[%clk 0:02:21.2]} 18. Bxg4
{[%clk 0:00:48.3]} 18... Nxg4 {[%clk 0:02:15.9]} 19. Qxf4 {[%clk 0:00:29.7]}
19... Rxf4 {[%clk 0:02:16.8]} 20. Ng5 {[%clk 0:00:30]} 20... Rxc4 {[%clk
0:02:07]} 21. Ne6+ {[%clk 0:00:30]} 21... Kf6 {[%clk 0:02:06.4]} 22. Ke2 {[%clk
0:00:25]} 22... Rc2+ {[%clk 0:02:03.5]} 23. Kd3 {[%clk 0:00:18.9]} 23... Rxb2
{[%clk 0:02:02.4]} 24. Rhc1 {[%clk 0:00:15.2]} 24... c5 {[%clk 0:01:53.9]} 25.
dxc6 {[%clk 0:00:12.6]} 25... Kxe6 {[%clk 0:01:49.8]} 26. Re1+ {[%clk
0:00:11.9]} 26... Kd5 {[%clk 0:01:46.3]} 27. c7 {[%clk 0:00:11.7]} 27... Ne5+
{[%clk 0:01:44.6]} 28. Kc3 {[%clk 0:00:11.2]} 28... Rb6 {[%clk 0:01:43.5]} 29.
Rad1+ {[%clk 0:00:10.5]} 29... Ke6 {[%clk 0:01:32.8]} 30. f4 {[%clk 0:00:10.5]}
30... Rc6+ {[%clk 0:01:33.3]} 31. Kd4 {[%clk 0:00:10]} 31... Rxc7 {[%clk
0:01:33.8]} 32. fxe5 {[%clk 0:00:10.4]} 32... dxe5+ {[%clk 0:01:34]} 33. Rxe5+
{[%clk 0:00:10.5]} 33... Kf6 {[%clk 0:01:33.1]} 34. Rf1+ {[%clk 0:00:10.5]}
34... Kg7 {[%clk 0:01:33.5]} 35. Rfe1 {[%clk 0:00:10.2]} 35... Rd8+ {[%clk
0:01:33.5]} 36. Ke4 {[%clk 0:00:10.3]} 36... Rc4+ {[%clk 0:01:31.9]} 37. Kf3
{[%clk 0:00:10.5]} 37... Rc3+ {[%clk 0:01:31]} 38. Kg2 {[%clk 0:00:09]} 38...
Rf8 {[%clk 0:01:31.6]} 39. Re7+ {[%clk 0:00:08.2]} 39... Rf7 {[%clk 0:01:32.2]}
40. Re8 {[%clk 0:00:08.6]} 40... Rc2+ {[%clk 0:01:30.7]} 41. Kg3 {[%clk
0:00:09]} 41... Rxa2 {[%clk 0:01:30.4]} 42. Rb8 {[%clk 0:00:08.8]} 42... Ra3+
{[%clk 0:01:29]} 43. Kg4 {[%clk 0:00:07.5]} 43... h5+ {[%clk 0:01:29.1]} 44. Kh4
{[%clk 0:00:07.6]} 44... Rf4+ {[%clk 0:01:28.7]} 0-1

[Event "*** Titled Tuesday Blitz"]
[Site "Chess.com"]
[Date "2020.04.28"]
[Round "2"]
[White "BillCoe"]
[Black "WeAintSurePal"]
[Result "0-1"]
[WhiteElo "2063"]
[BlackElo "2385"]
[TimeControl "180+1"]
[EndTime "10:17:09 PDT"]
[Termination "WeAintSurePal won by resignation"]

1. e4 {[%clk 0:03:00.9]} 1... c5 {[%clk 0:02:59.5]} 2. Nf3 {[%clk 0:03:01.1]}
2... e6 {[%clk 0:02:58.8]} 3. d4 {[%clk 0:03:00.4]} 3... cxd4 {[%clk 0:02:59.7]}
4. Nxd4 {[%clk 0:03:00.5]} 4... a6 {[%clk 0:03:00.3]} 5. Bd3 {[%clk 0:03:00]}
5... Qc7 {[%clk 0:02:58.9]} 6. c4 {[%clk 0:02:59.4]} 6... Nf6 {[%clk 0:02:57.5]}
7. Nc3 {[%clk 0:02:58.6]} 7... Nc6 {[%clk 0:02:53.9]} 8. Nxc6 {[%clk 0:02:56.1]}
8... dxc6 {[%clk 0:02:53.5]} 9. O-O {[%clk 0:02:54.1]} 9... h5 {[%clk 0:02:52]}
10. Qe2 {[%clk 0:02:29.5]} 10... Ng4 {[%clk 0:02:50.8]} 11. f4 {[%clk
0:02:21.4]} 11... Bc5+ {[%clk 0:02:45.3]} 12. Kh1 {[%clk 0:02:20.3]} 12... Qe7
{[%clk 0:02:43.7]} 13. Qe1 {[%clk 0:01:43.8]} 13... Bf2 {[%clk 0:02:27.4]} 14.
Rxf2 {[%clk 0:01:42.5]} 14... Qh4 {[%clk 0:02:26]} 15. g3 {[%clk 0:01:42.5]}
15... Nxf2+ {[%clk 0:02:19.2]} 16. Qxf2 {[%clk 0:01:43.4]} 16... Qe7 {[%clk
0:02:18.5]} 17. f5 {[%clk 0:01:38.6]} 17... exf5 {[%clk 0:02:17.7]} 18. exf5
{[%clk 0:01:37.2]} 18... O-O {[%clk 0:02:16.1]} 19. Bf4 {[%clk 0:01:23.2]} 19...
Re8 {[%clk 0:02:14.2]} 20. c5 {[%clk 0:01:15.5]} 20... Qf6 {[%clk 0:02:06]} 21.
Bd6 {[%clk 0:01:00.8]} 21... Bd7 {[%clk 0:01:46.6]} 22. Na4 {[%clk 0:00:55.9]}
22... Rad8 {[%clk 0:01:39.7]} 23. Nb6 {[%clk 0:00:56.2]} 23... Bc8 {[%clk
0:01:31.6]} 24. Nxc8 {[%clk 0:00:55.4]} 24... Rxc8 {[%clk 0:01:31.4]} 25. Rd1
{[%clk 0:00:53.8]} 25... Rcd8 {[%clk 0:01:30.9]} 26. b4 {[%clk 0:00:50.9]} 26...
b6 {[%clk 0:01:27.5]} 27. Re1 {[%clk 0:00:44.8]} 27... Qc3 {[%clk 0:01:14.4]}
28. Rxe8+ {[%clk 0:00:38.8]} 28... Rxe8 {[%clk 0:01:15.3]} 29. Qc2 {[%clk
0:00:33.7]} 29... Qxb4 {[%clk 0:01:09]} 30. f6 {[%clk 0:00:30.9]} 30... g6
{[%clk 0:00:53.7]} 31. Bxg6 {[%clk 0:00:30.4]} 31... Qe1+ {[%clk 0:00:52.8]} 32.
Kg2 {[%clk 0:00:28.9]} 32... Re2+ {[%clk 0:00:53.1]} 33. Kh3 {[%clk 0:00:25.9]}
33... Rxc2 {[%clk 0:00:50.9]} 34. Bxc2 {[%clk 0:00:26.8]} 34... Qe6+ {[%clk
0:00:46]} 35. Kg2 {[%clk 0:00:24.3]} 35... bxc5 {[%clk 0:00:46.2]} 36. Bxc5
{[%clk 0:00:22.6]} 36... Qe2+ {[%clk 0:00:45.6]} 0-1